fUST/lending_fUST_20251025
["ID","MTS","AMOUNT","RATE_DAILY","PERIOD"]
[392358689,1761401513981,196.0,0.00016988,2]
[392358690,1761401514280,196.0,0.00017112,2]
[392358691,1761401514594,196.0,0.00017235,2]
[392358692,1761401514653,1001.6,0.00017982,2]
[392358693,1761401515435,196.0,0.00017359,2]
[392358694,1761401515591,716.61,0.00017973,3]
[392358695,1761401515791,196.0,0.00017482,2]
[392358696,1761401516083,196.0,0.00017606,2]
[392358697,1761401516356,669.05,0.00017982,2]
[392358698,1761401516414,196.0,0.00017729,2]
[392358699,1761401516708,196.0,0.00017853,2]
[392358700,1761401517018,196.0,0.00017976,2]
[392358701,1761401519188,506.37225657,0.00017982,2]
[392358702,1761401520955,1577.63,0.00017982,2]
[392358703,1761401523571,269.54461511,0.00017982,2]
[392358704,1761401523630,30.45538489,0.00017982,2]
[392358705,1761401526040,252.48,0.00017973,3]
[392358706,1761401527978,214.66511427,0.00017614,2]
[392358707,1761401528551,557.36,0.00017982,2]
[392358709,1761401530811,211.0960333,0.00017077,2]
[392358710,1761401533879,500.0,0.00017982,2]
[392358711,1761401535083,300.0,0.000166,2]
[392358712,1761401535741,5000.0,0.00017983,2]
[392358713,1761401535993,537.99,0.00017982,2]
[392358714,1761401536302,433.0841532,0.00017982,2]
[392358715,1761401536398,500.0,0.00017982,2]
[392358716,1761401543490,500.0,0.00017982,2]
[392358717,1761401543556,500.0,0.00017982,2]
[392358718,1761401543626,462.87931434,0.00017982,2]
[392358719,1761401543685,37.12068566,0.00017982,2]
[392358720,1761401543745,500.0,0.00017982,2]
[392358721,1761401543834,507.68473792,0.00017982,2]
[392358722,1761401544085,500.0,0.00017982,2]
[392358723,1761401545548,502.67402379,0.00017982,2]
[392358724,1761401545884,500.0,0.00017982,2]
[392358725,1761401545955,880.2,0.00017982,2]
[392358726,1761401546023,250.0,0.00017982,2]
[392358727,1761401546088,500.0,0.00017982,2]
[392358728,1761401546158,500.0,0.00017982,2]
[392358729,1761401546233,500.0,0.00017982,2]
[392358730,1761401546894,500.0,0.00017982,2]
[392358731,1761401547661,300.0,0.000166,2]
[392358732,1761401548901,500.0,0.00017982,2]
[392358733,1761401552162,500.0,0.00017982,2]
[392358734,1761401553897,1567.83,0.00017982,2]
[392358735,1761401555530,500.0,0.00017982,2]
[392358736,1761401555593,500.0,0.00017982,2]
[392358737,1761401555925,454.50055263,0.00017982,2]
[392358738,1761401558493,5000.0,0.00017973,2]
[392358739,1761401559200,300.0,0.000166,2]
[392358740,1761401578240,227.59904951,0.00017892,2]
[392358741,1761401581591,4472.41095049,0.00017973,2]
[392358742,1761401581635,527.58904951,0.00017973,2]
[392358743,1761401589468,5000.0,0.00017973,2]
[392358744,1761401593697,163.68020521,0.000166,2]
[392358745,1761401598774,194.52940329,0.00017973,2]
[392358746,1761401607378,4114.21134199,0.00017973,2]
[392358747,1761401607426,885.78865801,0.00017973,2]
[392358749,1761401615645,2695.47573745,0.00017973,2]
[392358750,1761401624657,177.69136944,0.00017382,2]
[392358751,1761401631178,196.0,0.00016,2]
[392358752,1761401631465,196.0,0.00016233,2]
[392358753,1761401631769,196.0,0.00016467,2]
[392358754,1761401631884,5000.0,0.00017973,2]
[392358755,1761401632050,196.0,0.000167,2]
[392358756,1761401632325,196.0,0.00016933,2]
[392358757,1761401632655,196.0,0.00017167,2]
[392358758,1761401632972,65.0542351,0.000174,2]
[392358759,1761401633024,130.9457649,0.000174,2]
[392358760,1761401633261,196.0,0.00017633,2]
[392358761,1761401633543,196.0,0.00017867,2]
[392358762,1761401639925,2713.50783226,0.00017973,2]
[392358763,1761401655526,5000.0,0.00017973,2]
[392358764,1761401661762,6983.9456935,0.00016989,2]
[392358765,1761401678491,-531.01727354,0.00017892,2]
[392358766,1761401678785,5000.0,0.0001782,2]
[392358767,1761401686729,3937.97545292,0.00017892,2]
[392358768,1761401686775,1062.02454708,0.00017892,2]
[392358769,1761401702263,5000.0,0.00017892,2]
[392358770,1761401710815,3937.98545292,0.00017892,2]
[392358771,1761401710914,1062.01454708,0.00017892,2]
[392358772,1761401726261,5000.0,0.00017892,2]
[392358773,1761401734225,5000.0,0.00017892,2]
[392358775,1761401751138,0.01,0.00016,2]
[392358776,1761401751196,195.99,0.00016,2]
[392358777,1761401751436,196.0,0.00016162,2]
[392358778,1761401751774,196.0,0.00016323,2]
[392358779,1761401752601,196.0,0.00016485,2]
[392358780,1761401752955,196.0,0.00016646,2]
[392358781,1761401753262,196.0,0.00016808,2]
[392358782,1761401753568,196.0,0.00016969,2]
[392358783,1761401753887,196.0,0.00017131,2]
[392358784,1761401754182,196.0,0.00017292,2]
[392358785,1761401754479,196.0,0.00017454,2]
[392358786,1761401754799,196.0,0.00017615,2]
[392358787,1761401755104,196.0,0.00017777,2]
[392358788,1761401756852,5000.0,0.00017892,2]
[392358789,1761401771218,2648.02,0.00017118,2]
[392358790,1761401771280,156.4711925,0.00017118,2]
[392358791,1761401779574,4591.01643029,0.00017892,2]
[392358792,1761401780700,164.77441272,0.0001788,2]
[392358795,1761401844217,771.265473,0.00016981,2]
[392358796,1761401858609,484.96193928,0.00017881,2]
[392358797,1761401871309,196.0,0.00016,2]
[392358798,1761401878280,156.16447343,0.00017882,2]
[392358799,1761401880267,156.16447343,0.00017888,2]
[392358800,1761401886707,-156.16447343,0.00017894,2]
[392358801,1761401886727,-59.37059178,0.000179,2]
[392358802,1761401927332,773.67754432,0.00017376,2]
[392358803,1761401933389,213.0879655,0.00017381,2]
[392358804,1761401935718,383.55833791,0.00017381,2]
[392358805,1761401937099,681.88148961,0.00017381,2]
[392358806,1761401938771,1065.43982752,0.00017381,2]
[392358807,1761401939391,-96.79388165,0.000179,2]
[392358808,1761401939415,-199.19903338,0.000179,2]
[392358809,1761401952447,-154.8124823,0.000179,2]
[392358810,1761401967301,-800.0,0.00017979,2]
[392358811,1761401967365,-300.0,0.00017979,2]
[392358812,1761401982385,-1200.0,0.0001798,2]
[392358813,1761401982440,-500.0,0.0001798,2]
[392358814,1761401982494,-500.0,0.0001798,2]
[392358815,1761401982545,-500.0,0.0001798,2]
[392358816,1761401982600,-500.0,0.0001798,2]
[392358817,1761401982887,-271.54363177,0.0001798,2]
[392358818,1761401990429,196.0,0.00016,2]
[392358819,1761401997386,-500.0,0.0001798,2]
[392358820,1761401997441,-500.0,0.0001798,2]
[392358821,1761401997496,-500.0,0.0001798,2]
[392358822,1761401997559,-500.0,0.0001798,2]
[392358823,1761401997618,-500.0,0.0001798,2]
[392358824,1761401997675,-500.0,0.0001798,2]
[392358825,1761401997732,-500.0,0.0001798,2]
[392358826,1761401997793,-540.94950263,0.0001798,2]
[392358827,1761401997857,-500.0,0.0001798,2]
[392358828,1761401997924,-167.52052643,0.0001798,2]
[392358829,1761401997986,-83.06994188,0.0001798,2]
[392358830,1761401998722,-416.93005812,0.0001798,2]
[392358831,1761401998780,-500.0,0.0001798,2]
[392358832,1761401998841,-358.527,0.0001798,2]
[392358833,1761401998906,-500.0,0.0001798,2]
[392358834,1761401998964,-500.0,0.0001798,2]
[392358835,1761401999020,-500.0,0.0001798,2]
[392358836,1761401999077,-500.0,0.0001798,2]
[392358837,1761401999131,-481.17835393,0.0001798,2]
[392358838,1761401999185,-563.41498674,0.0001798,2]
[392358839,1761401999241,-500.0,0.0001798,2]
[392358840,1761401999993,-500.0,0.0001798,2]
[392358841,1761402000055,-344.74953902,0.0001798,2]
[392358842,1761402005401,300.0,0.0001798,2]
[392358843,1761402005544,300.0,0.0001798,2]
[392358844,1761402005711,1200.0,0.0001798,2]
[392358845,1761402012485,-215.53506521,0.00017981,2]
[392358846,1761402015058,213.96859442,0.00017972,2]
[392358847,1761402026259,500.0,0.0001798,2]
[392358848,1761402027498,-511.97822823,0.00017981,2]
[392358849,1761402027562,-500.0,0.00017981,2]
[392358850,1761402027625,-500.0,0.00017981,2]
[392358851,1761402027691,-500.0,0.00017981,2]
[392358852,1761402027756,-500.0,0.00017981,2]
[392358853,1761402027829,-500.0,0.00017981,2]
[392358854,1761402027902,-500.0,0.00017981,2]
[392358855,1761402027967,-470.93840016,0.00017981,2]
[392358856,1761402028034,-448.53036485,0.00017981,2]
[392358857,1761402028107,-500.0,0.00017981,2]
[392358858,1761402028479,-500.0,0.00017981,2]
[392358859,1761402028539,-501.50332539,0.00017981,2]
[392358860,1761402028609,-500.0,0.00017981,2]
[392358861,1761402028676,-261.21334644,0.00017981,2]
[392358862,1761402028746,-1335.21,0.00017981,2]
[392358863,1761402028816,-500.0,0.00017981,2]
[392358864,1761402028880,-500.0,0.00017981,2]
[392358865,1761402028942,-500.0,0.00017981,2]
[392358866,1761402029008,-304.15665634,0.00017981,2]
[392358867,1761402029498,880.51,0.0001798,2]
[392358868,1761402029899,-195.84334366,0.00017981,2]
[392358869,1761402029967,-500.0,0.00017981,2]
[392358870,1761402030036,-500.0,0.00017981,2]
[392358871,1761402030103,-500.0,0.00017981,2]
[392358872,1761402030170,-509.61043934,0.00017981,2]
[392358873,1761402030238,-500.0,0.00017981,2]
[392358874,1761402030313,-1217.33,0.00017981,2]
[392358875,1761402030384,-500.0,0.00017981,2]
[392358876,1761402030454,-500.0,0.00017981,2]
[392358877,1761402030862,-500.0,0.00017981,2]
[392358878,1761402030933,-511.39323563,0.00017981,2]
[392358879,1761402031004,-836.86,0.00017981,2]
[392358880,1761402031074,-500.0,0.00017981,2]
[392358881,1761402031148,-500.0,0.00017981,2]
[392358882,1761402031217,-500.0,0.00017981,2]
[392358883,1761402031285,-500.0,0.00017981,2]
[392358884,1761402031348,-500.0,0.00017981,2]
[392358885,1761402031412,-500.0,0.00017981,2]
[392358886,1761402031607,-500.0,0.00017981,2]
[392358887,1761402031682,-1468.32,0.00017981,2]
[392358888,1761402031754,-500.0,0.00017981,2]
[392358889,1761402031824,-500.0,0.00017981,2]
[392358890,1761402031893,-500.0,0.00017981,2]
[392358891,1761402031963,-1255.19,0.00017981,2]
[392358892,1761402032034,-52.99,0.00017981,2]
[392358893,1761402032862,-447.01,0.00017981,2]
[392358894,1761402032931,-500.0,0.00017981,2]
[392358895,1761402033003,-1275.8,0.00017981,2]
[392358896,1761402033075,-504.88896843,0.00017981,2]
[392358897,1761402033147,-862.7,0.00017981,2]
[392358898,1761402033218,-599.31206314,0.00017981,2]
[392358899,1761402033597,-1620.58793686,0.00017981,2]
[392358900,1761402033668,-500.0,0.00017981,2]
[392358901,1761402033753,-500.0,0.00017981,2]
[392358902,1761402033819,-890.23,0.00017981,2]
[392358903,1761402033888,-1297.74412628,0.00017981,2]
[392358904,1761402034293,-382.88587372,0.00017981,2]
[392358905,1761402034356,-501.66627802,0.00017981,2]
[392358906,1761402034421,-500.0,0.00017981,2]
[392358907,1761402034484,-562.41,0.00017981,2]
[392358908,1761402034552,-500.0,0.00017981,2]
[392358909,1761402034624,-564.54545308,0.00017981,2]
[392358910,1761402034694,-1742.16,0.00017981,2]
[392358911,1761402034787,-500.0,0.00017981,2]
[392358912,1761402034853,-500.0,0.00017981,2]
[392358913,1761402034923,-2613.28,0.00017981,2]
[392358914,1761402034992,-500.0,0.00017981,2]
[392358915,1761402035062,-522.98,0.00017981,2]
[392358916,1761402035132,-227.49,0.00017981,2]
[392358917,1761402039257,-272.51,0.00017981,2]
[392358918,1761402039322,-500.0,0.00017981,2]
[392358919,1761402039387,-1061.27,0.00017981,2]
[392358920,1761402039450,-500.0,0.00017981,2]
[392358921,1761402039513,-856.76,0.00017981,2]
[392358922,1761402039592,-506.44094046,0.00017981,2]
[392358923,1761402039662,-506.87293823,0.00017981,2]
[392358924,1761402039730,-500.0,0.00017981,2]
[392358925,1761402039797,-92.30224262,0.00017981,2]
[392358926,1761402040397,-407.69775738,0.00017981,2]
[392358927,1761402040619,-1716.23,0.00017981,2]
[392358928,1761402040693,-500.0,0.00017981,2]
[392358929,1761402040764,-1467.6,0.00017981,2]
[392358930,1761402040836,-877.60448524,0.00017981,2]
[392358931,1761402041012,-61.74551476,0.00017981,2]
[392358932,1761402041083,-500.0,0.00017981,2]
[392358933,1761402041157,-500.0,0.00017981,2]
[392358934,1761402041233,-2242.34,0.00017981,2]
[392358935,1761402041311,-493.23102708,0.00017981,2]
[392358936,1761402041380,-500.0,0.00017981,2]
[392358937,1761402041448,-500.0,0.00017981,2]
[392358938,1761402043033,-959.87,0.00017981,2]
[392358939,1761402043093,-500.0,0.00017981,2]
[392358940,1761402043161,-500.0,0.00017981,2]
[392358941,1761402043227,-501.35,0.00017981,2]
[392358942,1761402043298,-500.0,0.00017981,2]
[392358943,1761402043366,-500.0,0.00017981,2]
[392358944,1761402043432,-500.0,0.00017981,2]
[392358945,1761402043506,-500.0,0.00017981,2]
[392358946,1761402043580,-500.0,0.00017981,2]
[392358947,1761402043661,-1862.85,0.00017981,2]
[392358948,1761402043728,-717.12,0.00017981,2]
[392358949,1761402043793,-500.0,0.00017981,2]
[392358950,1761402043861,-500.0,0.00017981,2]
[392358951,1761402043930,-500.0,0.00017981,2]
[392358952,1761402043998,-500.0,0.00017981,2]
[392358953,1761402044076,-982.05,0.00017981,2]
[392358954,1761402044149,-500.0,0.00017981,2]
[392358955,1761402044218,-500.0,0.00017981,2]
[392358956,1761402044276,-500.0,0.00017981,2]
[392358957,1761402044348,-641.18,0.00017981,2]
[392358958,1761402044428,-500.0,0.00017981,2]
[392358959,1761402044497,-514.41487924,0.00017981,2]
[392358960,1761402044561,-772.71,0.00017981,2]
[392358961,1761402045609,-500.0,0.00017981,2]
[392358962,1761402045680,-500.0,0.00017981,2]
[392358963,1761402045747,-500.0,0.00017981,2]
[392358964,1761402048230,500.0,0.00017981,2]
[392358965,1761402058112,5000.0,0.0001782,2]
[392358966,1761402066816,509.42759824,0.0001782,2]
[392358967,1761402081952,4574.20836635,0.0001782,2]
[392358968,1761402083612,510.44039908,0.00017376,2]
[392358969,1761402085662,2039.71983473,0.00017376,2]
[392358970,1761402087693,424.42480752,0.00017277,2]
[392358971,1761402089686,763.96465353,0.00017277,2]
[392358972,1761402092250,1177.82434055,0.00017277,2]
[392358973,1761402092305,180.33504351,0.00017277,2]
[392358974,1761402094791,2122.1240376,0.00017277,2]
[392358975,1761402097004,3055.85861414,0.00017277,2]
[392358976,1761402110426,299.31807639,0.00016,2]
[392358977,1761402148690,-173.75805576,0.00017881,2]
[392358978,1761402208708,-254.94917353,0.00017881,2]
[392358979,1761402208728,-172.81061943,0.000179,2]
[392358980,1761402230160,196.0,0.00016,2]
[392358981,1761402230989,196.0,0.0001705,2]
[392358982,1761402233886,259.97193512,0.00017269,2]
[392358983,1761402236290,199.10394401,0.00017277,2]
[392358984,1761402238244,227.54736458,0.00017277,2]
[392358985,1761402239908,355.54275715,0.00017277,2]
[392358986,1761402247650,2908.2082275,0.0001782,2]
[392358987,1761402247719,952.8856039,0.0001782,2]
[392358988,1761402248860,7709.4214486,0.0001698,2]
[392358991,1761402307809,187.88725035,0.000178,2]
[392358996,1761402373679,-155.54830749,0.000179,2]
[392358997,1761402373703,-273.81675613,0.00017972,2]
[392358998,1761402385183,1000.0,0.00019,6]
[392358999,1761402385934,210.69884644,0.00017276,2]
[392359002,1761402404256,-157.44634348,0.00017873,2]
[392359003,1761402404336,-250.77921191,0.000179,2]
[392359004,1761402405750,-168.78025044,0.000179,2]
[392359005,1761402417318,500.0,0.00030136,120]
[392359006,1761402419220,-258.15826098,0.00017882,2]
[392359007,1761402421892,-196.0,0.00017882,2]
[392359008,1761402423375,-269.06291153,0.00017882,2]
[392359009,1761402425425,-375.11882562,0.0001788,2]
[392359010,1761402425449,-66.02117438,0.00017881,2]
[392359011,1761402426115,500.0,0.00030136,120]
[392359012,1761402426814,-233.97882562,0.00017881,2]
[392359013,1761402426837,-158.53185295,0.00017882,2]
[392359014,1761402429680,-247.93283321,0.00017882,2]
[392359015,1761402431109,-338.46016691,0.00017882,2]
[392359016,1761402433252,-198.076796,0.00017882,2]
[392359017,1761402434904,-256.73,0.00017882,2]
[392359018,1761402436727,500.0,0.00030136,120]
[392359019,1761402437097,-164.77441272,0.00017882,2]
[392359020,1761402438757,-155.36852801,0.00017882,2]
[392359021,1761402441462,-191.37,0.00017882,2]
[392359022,1761402442836,-151.34296655,0.00017882,2]
[392359023,1761402445123,-196.0,0.00017882,2]
[392359024,1761402447534,-196.0,0.00017882,2]
[392359025,1761402447664,-6802.84460311,0.00017882,2]
[392359026,1761402447748,-10000.01,0.00017882,2]
[392359027,1761402448003,-10000.01,0.00017882,2]
[392359028,1761402448278,-10000.01,0.00017882,2]
[392359029,1761402448516,-10000.01,0.00017882,2]
[392359030,1761402449497,-10000.01,0.00017882,2]
[392359031,1761402449877,-10000.01,0.00017882,2]
[392359032,1761402449994,-10000.01,0.00017882,2]
[392359033,1761402450265,-10000.01,0.00017882,2]
[392359034,1761402450509,-10000.01,0.00017882,2]
[392359035,1761402450758,-10000.01,0.00017882,2]
[392359036,1761402451012,-10000.01,0.00017882,2]
[392359037,1761402451175,-10000.01,0.00017882,2]
[392359038,1761402451358,-10000.01,0.00017882,2]
[392359039,1761402451587,-10000.01,0.00017882,2]
[392359040,1761402454264,-319.06619934,0.00017882,2]
[392359041,1761402455269,-10000.01,0.00017882,2]
[392359042,1761402455506,-10000.01,0.00017882,2]
[392359043,1761402455740,-10000.01,0.00017882,2]
[392359044,1761402455959,-10000.01,0.00017882,2]
[392359045,1761402456182,-10000.01,0.00017882,2]
[392359046,1761402456396,-10000.01,0.00017882,2]
[392359047,1761402456507,-220.52147883,0.00017882,2]
[392359048,1761402456651,-10000.01,0.00017882,2]
[392359049,1761402456872,-10000.01,0.00017882,2]
[392359050,1761402457079,-10000.01,0.00017882,2]
[392359051,1761402457306,-10000.01,0.00017882,2]
[392359052,1761402459004,-218.90595128,0.000178,2]
[392359053,1761402459026,-26.57812753,0.00017881,2]
[392359054,1761402464379,-290.64945393,0.00017881,2]
[392359055,1761402467451,-882.77241854,0.00017881,2]
[392359056,1761402467545,-239.7091623,0.00017882,2]
[392359057,1761402467597,-8234.46516292,0.00017882,2]
[392359058,1761402468827,-10000.01,0.00017882,2]
[392359059,1761402469144,-10000.01,0.00017882,2]
[392359060,1761402469418,-10000.01,0.00017882,2]
[392359061,1761402469631,-169.64000003,0.00017882,2]
[392359062,1761402469934,-10000.01,0.00017882,2]
[392359063,1761402470250,-10000.01,0.00017882,2]
[392359064,1761402470581,-10000.01,0.00017882,2]
[392359065,1761402470910,-10000.01,0.00017882,2]
[392359066,1761402471107,-10000.01,0.00017882,2]
[392359067,1761402471307,-10000.01,0.00017882,2]
[392359068,1761402471536,-319.58095645,0.00017882,2]
[392359069,1761402472514,734.6133714,0.0003013,120]
[392359072,1761402476260,-10000.01,0.00017882,2]
[392359073,1761402476463,-10000.01,0.00017882,2]
[392359074,1761402476697,-716.01370816,0.00017882,2]
[392359075,1761402479497,-80.44053765,0.000179,2]
[392359077,1761402494310,-300.0,0.00017972,2]
[392359078,1761402497240,1009.01260244,0.00015,2]
[392359081,1761402514668,168.93196634,0.0002,120]
[392359084,1761402519742,2345.48712207,0.0001,2]
[392359085,1761402520422,261.33651974,0.00015,2]
[392359086,1761402521275,7393.18635819,0.00017973,2]
[392359087,1761402521333,639.35364181,0.00017973,2]
[392359088,1761402530847,182.05330247,0.0001788,2]
[392359089,1761402532833,182.05330247,0.00017906,2]
[392359090,1761402534174,161.41856378,0.00017269,2]
[392359093,1761402534840,182.05330247,0.00017932,2]
[392359094,1761402536515,172.27584414,0.00017276,2]
[392359095,1761402536831,182.05330247,0.00017957,2]
[392359096,1761402538250,310.09651946,0.00017276,2]
[392359097,1761402543398,300.0,0.00017972,2]
[392359098,1761402585465,7688.65222093,0.0001788,2]
[392359099,1761402585514,10000.01,0.0001788,2]
[392359100,1761402585564,10000.01,0.0001788,2]
[392359101,1761402585614,10000.01,0.0001788,2]
[392359102,1761402585663,10000.01,0.0001788,2]
[392359103,1761402585717,10000.01,0.0001788,2]
[392359104,1761402585773,10000.01,0.0001788,2]
[392359105,1761402585826,10000.01,0.0001788,2]
[392359106,1761402585880,10000.01,0.0001788,2]
[392359107,1761402585934,10000.01,0.0001788,2]
[392359108,1761402595334,-4170.0,0.00017667,2]
[392359109,1761402595811,-484.95139808,0.00017701,2]
[392359110,1761402600567,-9681.1046014,0.0001788,2]
[392359111,1761402600779,-10000.01,0.0001788,2]
[392359112,1761402601000,-10000.01,0.0001788,2]
[392359113,1761402601215,-10000.01,0.0001788,2]
[392359114,1761402601412,-10000.01,0.0001788,2]
[392359115,1761402601646,-10000.01,0.0001788,2]
[392359116,1761402606152,-163.07995858,0.00017873,2]
[392359117,1761402610993,626.0,0.00017679,2]
[392359118,1761402621014,-300.0,0.00017879,2]
[392359119,1761402621091,-300.0,0.00017879,2]
[392359120,1761402621170,-300.0,0.00017879,2]
[392359121,1761402621239,-300.0,0.00017879,2]
[392359122,1761402621308,-1200.0,0.00017879,2]
[392359167,1761402632444,-282.22539225,0.00017879,2]
[392359168,1761402632455,-185.50281644,0.00017879,2]
[392359169,1761402632464,-52.11729131,0.0001788,2]
[392359170,1761402634589,626.0,0.00017766,2]
[392359171,1761402635175,377.53401686,0.000178,2]
[392359193,1761402641115,-3e-08,0.00017879,2]
[392359219,1761402651432,-499.99999997,0.00017879,2]
[392359220,1761402651500,-500.0,0.00017879,2]
[392359221,1761402651562,-500.0,0.00017879,2]
[392359222,1761402651642,-500.0,0.00017879,2]
[392359223,1761402651728,-500.0,0.00017879,2]
[392359224,1761402651814,-451.73569358,0.00017879,2]
[392359225,1761402651892,-500.0,0.00017879,2]
[392359226,1761402651975,-576.0077127,0.00017879,2]
[392359227,1761402652043,-500.0,0.00017879,2]
[392359228,1761402652107,-467.57913561,0.00017879,2]
[392359229,1761402652593,-9.36491628,0.00017879,2]
[392359230,1761402652665,-500.0,0.00017879,2]
[392359231,1761402652725,-500.0,0.00017879,2]
[392359232,1761402652785,-330.12449437,0.00017879,2]
[392359233,1761402652846,-200.23552418,0.00017879,2]
[392359234,1761402652907,-500.0,0.00017879,2]
[392359235,1761402652970,-500.0,0.00017879,2]
[392359236,1761402653045,-500.0,0.00017879,2]
[392359237,1761402653120,-500.0,0.00017879,2]
[392359238,1761402653429,-500.0,0.00017879,2]
[392359239,1761402653490,-500.0,0.00017879,2]
[392359240,1761402653552,-420.56013034,0.00017879,2]
[392359241,1761402653894,-79.43986966,0.00017879,2]
[392359242,1761402653958,-500.0,0.00017879,2]
[392359243,1761402654024,-499.99999999,0.00017879,2]
[392359244,1761402654173,3064.75,0.00017879,2]
[392359245,1761402654907,483.0,0.00017576,2]
[392359246,1761402655538,-2861.30531766,0.0001788,2]
[392359247,1761402655594,-10000.01,0.0001788,2]
[392359248,1761402655649,-10000.01,0.0001788,2]
[392359249,1761402655706,-10000.01,0.0001788,2]
[392359250,1761402655779,-10000.01,0.0001788,2]
[392359251,1761402655879,-10000.01,0.0001788,2]
[392359252,1761402655948,-10000.01,0.0001788,2]
[392359253,1761402656023,-10000.01,0.0001788,2]
[392359254,1761402657230,-10000.01,0.0001788,2]
[392359255,1761402672995,-300.0,0.00017879,2]
[392359256,1761402674854,538.75,0.00017879,2]
[392359257,1761402676656,300.0,0.000177,2]
[392359258,1761402683795,982.96,0.00017879,2]
[392359259,1761402687500,-8178.3,0.0001788,2]
[392359260,1761402687586,-10000.01,0.0001788,2]
[392359261,1761402687703,375.4215403,0.00017276,2]
[392359262,1761402687904,300.0,0.000177,2]
[392359263,1761402687991,-9324.5884597,0.0001788,2]
[392359264,1761402688102,-10000.01,0.0001788,2]
[392359265,1761402688364,-10000.01,0.0001788,2]
[392359266,1761402688543,-10000.01,0.0001788,2]
[392359267,1761402688752,-10000.01,0.0001788,2]
[392359268,1761402688989,-10000.01,0.0001788,2]
[392359269,1761402689237,-10000.01,0.0001788,2]
[392359270,1761402689436,-10000.01,0.0001788,2]
[392359271,1761402703685,-300.0,0.000177,2]
[392359272,1761402703708,-17.85319662,0.000177,2]
[392359273,1761402705480,-343.29280168,0.000177,2]
[392359274,1761402705544,-500.0,0.00017879,2]
[392359275,1761402708194,343.29280168,0.00017523,2]
[392359276,1761402711103,196.0,0.00016,2]
[392359277,1761402711402,196.0,0.00016525,2]
[392359278,1761402711818,196.0,0.0001705,2]
[392359279,1761402712009,196.0,0.00017575,2]
[392359280,1761402713006,500.0,0.00017879,2]
[392359281,1761402716354,1852.66,0.00017879,2]
[392359282,1761402720498,500.0,0.00017879,2]
[392359283,1761402723382,300.0,0.00017879,2]
[392359284,1761402723738,489.23987565,0.00017879,2]
[392359291,1761402727846,519.28,0.00017879,2]
[392359298,1761402731675,1449.0914164,0.00017879,2]
[392359299,1761402735381,500.0,0.00017879,2]
[392359300,1761402735641,879.38,0.00017879,2]
[392359301,1761402737127,500.0,0.00017879,2]
[392359302,1761402739862,173.75805576,0.00017879,2]
[392359303,1761402740328,1349.17624,0.00030037,120]
[392359304,1761402749410,500.0,0.00017879,2]
[392359305,1761402751293,1052.60065219,0.00017879,2]
[392359306,1761402751345,530.46934781,0.00017879,2]
[392359307,1761402751868,1272.3,0.00017879,2]
[392359308,1761402753396,500.0,0.00017879,2]
[392359309,1761402757994,1200.0,0.00017879,2]
[392359310,1761402758996,559.28,0.00017879,2]
[392359311,1761402764067,860.44,0.00017879,2]
[392359312,1761402764880,500.0,0.00017879,2]